bitfinex/quotes_ETHUSD_20240816
["timestamp","ask_amount","ask_price","bid_price","bid_amount"]
[1723825266720,3.86774,2585.5,2584.8,2.4555]
[1723825266946,4.10468,2585.6,2584.8,2.4555]
[1723825266947,7.97237,2585.6,2585.1,3.8683]
[1723825267122,7.97237,2585.6,2584.9,3.86855]
[1723825267123,4.907427,2585.5,2585.2,0.08558147]
[1723825267321,3.86788,2585.4,2585.2,0.08558147]
[1723825267517,3.86788,2585.4,2585.0,3.0]
[1723825267767,0.4907577,2585.3,2585.0,6.86843]
[1723825268065,1.039697,2585.5,2585.0,6.86843]
[1723825268421,7.73479,2585.8,2585.0,3.0]
[1723825268622,3.86707,2586.0,2585.5,3.8677]
[1723825268860,6.29135,2586.2,2585.5,7.73534]
[1723825269061,4.496047,2586.1,2585.5,3.86764]
[1723825269387,0.629137,2586.1,2585.6,3.86749]
[1723825269558,4.9457397,2586.0,2585.4,23.48783]
[1723825269860,3.867,2586.0,2585.5,6.8677]
[1723825270060,3.86727,2585.8,2585.5,3.0]
[1723825270258,2.4246,2586.2,2585.5,3.0]
[1723825270259,3.86708,2586.0,2585.5,3.0]
[1723825270432,6.29137,2586.2,2585.5,3.0]
[1723825270433,6.29137,2586.2,2585.6,3.86757]
[1723825270637,3.86691,2586.1,2585.6,3.86757]
[1723825270837,3.86698,2586.0,2585.5,3.0]
[1723825271037,1.015828,2586.0,2585.5,3.0]
[1723825271246,3.86733,2585.8,2585.5,3.0]
[1723825271453,3.86801,2585.4,2584.8,13.58971]
[1723825271777,3.86826,2585.2,2584.8,7.32]
[1723825272126,3.86804,2585.3,2584.8,11.18876]
[1723825272674,3.86796,2585.4,2584.8,11.18876]
[1723825272675,3.86818,2585.2,2584.8,7.32]
[1723825272901,0.386818,2585.1,2584.8,7.32]
[1723825273031,3.86835,2585.1,2584.9,3.0]
[1723825273255,3.86819,2585.2,2584.9,3.0]
[1723825273680,3.86833,2585.1,2584.8,7.32]
[1723825273973,4.255149,2585.1,2584.8,7.32]
[1723825274163,4.255149,2585.1,2584.7,19.62]
[1723825274604,3.86854,2585.0,2584.5,6.27014]
[1723825274899,4.255149,2585.1,2584.5,6.27014]
[1723825275204,3.86767,2585.6,2584.5,6.27018]
[1723825275407,3.86743,2585.7,2585.2,3.86809]
[1723825275575,3.86727,2585.8,2584.9,3.0]
[1723825275775,2.3111,2585.9,2585.4,3.86785]
[1723825275973,2.3111,2585.9,2585.3,3.86802]
[1723825275974,3.86722,2585.9,2585.3,3.86802]
[1723825276199,3.86722,2585.9,2585.3,3.8679]
[1723825276797,3.86709,2586.0,2585.5,3.86765]
[1723825277197,3.86709,2586.0,2585.3,3.86792]
[1723825277497,3.86721,2585.9,2585.4,3.86785]
[1723825278094,3.86721,2585.9,2585.1,19.62]
[1723825278095,3.86751,2585.7,2585.1,19.62]
[1723825278307,3.86751,2585.7,2585.2,3.0]
[1723825278308,0.386751,2585.6,2585.2,3.0]
[1723825278503,2.4411,2586.2,2585.3,3.868]
[1723825278672,2.4411,2586.2,2585.5,3.86762]
[1723825278673,3.86705,2586.0,2585.5,3.86762]
[1723825279876,3.86705,2586.0,2585.4,2.3818]
[1723825279877,3.86713,2585.9,2585.4,2.3818]
[1723825280202,3.86713,2585.9,2585.4,3.0]
[1723825280575,3.86713,2585.9,2585.4,6.86787]
[1723825281374,3.86697,2586.1,2585.5,3.95298302]
[1723825281564,4.17153011,2586.2,2585.5,3.95298302]
[1723825281764,3.86699,2586.0,2585.5,7.82056302]
[1723825282199,7.73406,2586.0,2585.5,3.95292302]
[1723825282502,3.86699,2586.0,2585.5,3.95292302]
[1723825283291,0.41715301,2586.1,2585.5,3.95292302]
[1723825283604,3.86704,2586.0,2585.5,3.95292302]
[1723825283805,3.86704,2586.0,2585.5,7.82055302]
[1723825284026,3.86704,2586.0,2585.6,3.0]
[1723825284304,3.86704,2586.0,2585.7,0.08513986]
[1723825284729,2.4402,2586.9,2585.7,20.40041685]
[1723825284933,7.73108,2587.0,2586.4,3.8663]
[1723825285087,3.86533,2587.1,2586.6,3.86607]
[1723825285286,6.31048,2587.2,2586.6,3.86607]
[1723825285594,6.31048,2587.2,2586.7,2.40822437]
[1723825285595,0.005,2587.2,2586.7,2.40822437]
[1723825285787,0.005,2587.2,2587.0,3.86537]
[1723825286214,0.005,2587.2,2587.1,0.08413833]
[1723825286388,0.005,2587.2,2587.0,3.0]
[1723825286603,0.005,2587.2,2587.1,0.08381436]
[1723825287501,0.005,2587.2,2586.9,3.0]
[1723825287714,0.005,2587.2,2587.1,0.08378302]
[1723825287913,0.005,2587.2,2587.0,0.08385453]
[1723825288210,0.005,2587.2,2586.9,3.0]
[1723825288211,0.005,2587.2,2587.1,0.08378302]
[1723825288535,0.005,2587.2,2586.9,3.0]
[1723825288699,0.005,2587.2,2587.1,0.08378302]
[1723825289402,0.005,2587.2,2586.9,3.0]
[1723825289638,0.005,2587.2,2587.0,0.08385453]
[1723825290246,0.005,2587.2,2587.0,6.60628098]
[1723825290531,0.005,2587.2,2587.1,33.29185541]
[1723825290911,0.005,2587.2,2587.1,33.37525177]
[1723825291118,0.005,2587.2,2587.1,33.29795636]
[1723825291321,0.005,2587.2,2587.1,37.16328636]
[1723825291647,0.005,2588.0,2587.8,3.8642]
[1723825291848,0.005,2588.0,2587.6,6.17834]
[1723825292053,0.005,2588.0,2587.9,0.08272794]
[1723825292330,0.005,2588.0,2587.8,3.86414]
[1723825292543,0.005,2588.0,2587.9,3.08272794]
[1723825293108,0.005,2588.0,2587.9,11.50568073]
[1723825293426,0.005,2588.0,2587.9,13.80078794]
[1723825293633,0.005,2588.0,2587.9,17.66491794]
[1723825294325,0.005,2588.0,2587.9,52.66491794]
[1723825295325,0.005,2588.0,2587.9,48.80078794]
[1723825295515,0.005,2588.0,2587.9,50.25826419]
[1723825295842,0.005,2588.0,2587.9,3.08272794]
[1723825296006,0.005,2588.0,2587.9,6.94685794]
[1723825296640,0.005,2588.0,2587.9,3.08272794]
[1723825296811,0.005,2588.0,2587.9,6.94685794]
[1723825297012,0.005,2588.0,2587.9,10.81098794]
[1723825297240,0.005,2588.0,2587.9,18.13481673]
[1723825297439,0.005,2588.0,2587.9,14.27068673]
[1723825297903,0.005,2588.0,2587.9,14.82068673]
[1723825299304,0.005,2588.0,2587.9,18.68481673]
[1723825299840,0.005,2588.0,2587.9,14.82068673]
[1723825300043,0.005,2588.0,2587.9,13.73958794]
[1723825300504,0.005,2588.0,2587.9,9.87545794]
[1723825300701,0.005,2588.0,2587.9,7.49685794]
[1723825300915,0.005,2588.0,2587.9,0.08272794]
[1723825301440,0.005,2588.0,2587.9,0.08247483]
[1723825302212,0.005,2588.0,2587.7,6.24974]
[1723825302412,0.005,2588.0,2587.8,6.86427]
[1723825302625,0.005,2588.0,2587.8,19.70254628]
[1723825302922,3.86902,2588.0,2587.8,19.70254628]
[1723825303130,0.005,2588.0,2587.8,19.70254628]
[1723825303948,0.005,2588.0,2587.9,4.41413]
[1723825304108,0.005,2588.0,2587.9,11.27826]
[1723825304310,0.005,2588.0,2587.9,11.36073483]
[1723825305219,0.005,2588.0,2587.9,3.08247483]
[1723825305443,0.005,2588.0,2587.9,0.08247483]
[1723825306536,0.005,2588.0,2587.9,6.94660483]
[1723825306747,0.005,2588.0,2587.9,6.12555131]
[1723825306961,0.005,2588.0,2587.9,3.63247483]
[1723825307365,0.005,2588.0,2587.9,7.49660483]
[1723825307866,0.005,2588.0,2587.9,3.63247483]
[1723825308268,0.005,2588.0,2587.9,23.25247483]
[1723825308477,0.005,2588.0,2587.9,19.70247483]
[1723825308478,3.86898,2588.0,2587.9,19.70247483]
[1723825308642,4.256378,2588.0,2587.9,19.70247483]
[1723825308842,0.392398,2588.0,2587.9,19.70247483]
[1723825309158,0.005,2588.0,2587.9,19.70247483]
[1723825309540,0.005,2588.0,2587.9,30.43073483]
[1723825310074,0.005,2588.0,2587.9,30.98073483]
[1723825310735,0.005,2588.0,2587.9,23.25247483]
[1723825310931,0.005,2588.0,2587.9,27.11660483]
[1723825311138,0.005,2588.0,2587.9,30.82879631]
[1723825313676,0.005,2588.0,2587.9,26.96466631]
[1723825313978,0.005,2588.0,2587.9,27.11660483]
[1723825314283,0.005,2588.0,2587.9,23.25247483]
[1723825314479,0.005,2588.0,2587.9,22.70247483]
[1723825314683,0.005,2588.0,2587.9,19.70247483]
[1723825314974,10.430448,2588.0,2587.9,19.70247483]
[1723825315208,10.04306,2588.0,2587.9,0.08247483]
[1723825315480,3.86461,2587.6,2587.2,19.62]
[1723825315667,3.86477,2587.5,2587.3,19.62]
[1723825315857,3.86477,2587.5,2587.4,0.08254507]
[1723825316182,10.812608,2587.5,2587.4,0.08254507]
[1723825316383,13.90447,2587.5,2587.4,0.08254507]
[1723825316880,13.90447,2587.5,2586.7,26.94]
[1723825316881,3.86586,2586.8,2586.3,19.62]
[1723825317080,6.17573,2586.9,2586.4,23.4863]
[1723825317374,3.86578,2586.8,2586.4,19.70337237]
[1723825318077,3.86578,2586.8,2586.5,3.0]
[1723825318386,7.73167,2586.8,2586.5,3.0]
[1723825318588,3.86592,2586.7,2586.6,0.0832293]
[1723825318759,7.73184,2586.7,2586.6,0.0832293]
[1723825318954,3.86623,2586.5,2586.2,26.94]
[1723825319159,3.86623,2586.5,2586.1,0.40147836]
[1723825319366,1.004177,2586.8,2586.1,0.40147836]
[1723825319667,10.04151,2586.9,2586.1,0.40147836]
[1723825319668,6.17575,2586.9,2586.1,0.40147836]
[1723825320059,3.86565,2586.9,2586.4,3.86634]
[1723825320253,2.327,2587.3,2586.5,0.07731891]
[1723825320452,2.327,2587.3,2586.4,0.613644]
[1723825320453,3.301047,2587.6,2587.1,3.86532]
[1723825320642,3.86491,2587.4,2586.9,3.86559]
[1723825320843,4.1949447,2587.5,2587.0,3.0]
[1723825321049,8.0598047,2587.5,2587.0,3.0]
[1723825321266,4.1949347,2587.5,2587.0,3.0]
[1723825321452,2.4312,2587.6,2587.0,3.0]
[1723825321841,3.86416,2587.9,2586.4,3.86623]
[1723825321842,3.86556,2587.0,2586.4,3.86623]
[1723825322064,3.86556,2587.0,2586.5,3.55]
[1723825322262,3.86539,2587.1,2586.1,0.40147836]
[1723825322465,3.86613,2586.6,2586.1,4.26821836]
[1723825323181,6.2514,2587.1,2586.6,3.86599]
[1723825323479,3.86518,2587.2,2586.6,3.86599]
[1723825323682,3.86518,2587.2,2586.3,2.385]
[1723825323683,2.3915,2587.5,2586.7,3.0]
[1723825323848,2.3915,2587.5,2587.0,3.8654]
[1723825324045,2.3915,2587.5,2587.0,3.86539]
[1723825325083,7.72939,2587.6,2587.0,3.86539]
[1723825325084,3.86468,2587.6,2587.0,3.86539]
[1723825325385,3.86467,2587.6,2587.0,3.86539]
[1723825325750,3.86417,2587.9,2587.1,3.0]
[1723825325865,0.005,2588.0,2587.4,6.26236]
[1723825326066,0.005,2588.0,2587.5,3.70352073]
[1723825326274,0.005,2588.0,2587.8,3.8642]
[1723825326468,0.005,2588.0,2587.9,6.94673001]
[1723825326662,0.005,2588.0,2587.9,3.08260001]
[1723825327195,0.005,2588.0,2587.9,0.08260001]
[1723825327196,7.73296,2588.0,2587.9,0.08260001]
[1723825327370,8.746166,2588.0,2587.9,0.08260001]
[1723825327573,3.86428,2587.8,2587.7,19.62]
[1723825327900,3.86489,2587.4,2586.9,11.18561]
[1723825328123,2.3408,2587.5,2586.9,19.62]
[1723825328265,3.8654,2587.1,2586.9,19.62]
[1723825328459,2.3408,2587.5,2586.6,11.18599]
[1723825328460,6.20558,2587.5,2586.6,26.94]
[1723825328797,3.86541,2587.1,2586.6,26.94]
[1723825329166,3.8651,2587.3,2586.6,26.94]
[1723825329368,3.86525,2587.2,2586.6,34.67199]
[1723825329573,3.86533,2587.1,2586.6,30.80599]
[1723825329774,7.73025,2587.3,2586.6,30.80599]
[1723825330083,3.86503,2587.3,2586.6,30.74945125]
[1723825330278,7.73085,2587.1,2586.6,30.80604]
[1723825330488,3.86552,2587.0,2586.6,26.94]
[1723825330806,3.86511,2587.3,2586.8,3.86577]
[1723825330976,3.86505,2587.3,2586.7,3.55]
[1723825331303,4.872122,2587.3,2586.7,3.55]
[1723825331490,6.20562,2587.5,2586.7,3.55]
[1723825331698,3.86512,2587.3,2586.7,7.41583]
[1723825331898,2.3408,2587.5,2586.7,7.41583]
[1723825332203,3.86513,2587.3,2586.7,27.03583]
[1723825332405,3.8649,2587.4,2586.9,3.8656]
[1723825332571,3.8649,2587.4,2587.0,0.55]
[1723825332772,2.3854,2587.3,2586.7,22.62]
[1723825333070,3.86558,2587.0,2586.7,22.62]
[1723825333270,3.86527,2587.2,2586.7,22.62]
[1723825333471,3.86489,2587.4,2586.9,3.86561]
[1723825333919,7.72988,2587.4,2586.9,3.86561]
[1723825334118,3.86504,2587.3,2586.7,30.35165]
[1723825334425,3.86504,2587.3,2586.8,0.55]
[1723825334626,3.86489,2587.4,2586.9,3.86554]
[1723825334929,6.33587,2587.6,2586.9,3.86554]
[1723825335134,0.6722298,2587.5,2586.9,3.86554]
[1723825335426,4.5370498,2587.5,2587.0,3.86546]
[1723825335772,6.33587,2587.6,2587.1,3.86525]
[1723825335983,6.33587,2587.6,2586.8,0.55]
[1723825335984,3.86437,2587.8,2587.2,3.86506]
[1723825336279,3.86437,2587.8,2587.3,0.55]
[1723825336478,7.7288,2587.8,2587.3,0.55]
[1723825336684,3.86445,2587.7,2587.3,0.55]
[1723825337133,2.3101,2587.9,2587.2,3.0]
[1723825337134,3.86488,2587.4,2587.2,3.0]
[1723825337285,3.86488,2587.4,2586.9,2.3948]
[1723825337286,3.86488,2587.4,2586.9,6.26041]
[1723825337633,3.86488,2587.4,2587.0,3.0]
[1723825339786,4.637562,2587.6,2587.0,6.86546]
[1723825339787,8.502272,2587.6,2587.0,6.86546]
[1723825339982,3.86467,2587.6,2587.0,6.86539]
[1723825340209,0.005,2588.0,2587.3,3.86493]
[1723825340210,3.86438,2587.8,2587.3,3.86493]
[1723825340433,3.86438,2587.8,2587.4,3.386493]
[1723825340434,3.86456,2587.7,2587.4,3.386493]
[1723825340640,3.86418,2587.9,2587.3,3.0]
[1723825340937,3.86905,2588.0,2587.5,3.86463]
[1723825341231,0.005,2588.0,2587.6,3.0]
[1723825341457,0.005,2588.0,2587.7,5.100793]
[1723825341586,0.005,2588.0,2587.9,3.86413]
[1723825341901,0.005,2588.0,2587.9,4.02385075]
[1723825342240,0.005,2588.0,2587.9,6.94657605]
[1723825342420,0.005,2588.0,2587.9,3.63244605]
[1723825342740,3.86898,2588.0,2587.9,3.08244605]
[1723825343087,8.120358,2588.0,2587.9,0.08244605]
[1723825343397,3.86421,2587.9,2587.6,3.0]
[1723825343618,3.86421,2587.9,2587.5,3.0]
[1723825344139,3.86898,2588.0,2587.5,3.0]
[1723825344290,3.86458,2587.6,2587.2,19.62]
[1723825344508,3.86495,2587.4,2587.0,26.94]
[1723825344710,3.86475,2587.5,2587.0,3.86536]
[1723825345109,7.72958,2587.5,2586.9,3.86554]
[1723825345455,3.86475,2587.5,2586.9,7.73107]
[1723825345636,3.86475,2587.5,2587.0,3.86548]
[1723825345853,3.86475,2587.5,2587.1,3.0]
[1723825346624,3.86475,2587.5,2587.0,3.0]
[1723825347121,7.7291,2587.7,2587.1,3.86526]
[1723825347470,3.8642,2587.9,2587.0,4.2078717]
[1723825347680,3.86908,2588.0,2587.5,3.86473]
[1723825348028,0.005,2588.0,2587.4,22.078]
[1723825348249,0.005,2588.0,2587.9,3.86413]
[1723825348445,0.005,2588.0,2587.9,0.55]
[1723825348644,0.005,2588.0,2587.9,3.55]
[1723825349390,0.005,2588.0,2587.9,7.41413]
[1723825349683,0.005,2588.0,2587.9,8.541964]
[1723825350481,0.005,2588.0,2587.9,12.406094]
[1723825350681,0.005,2588.0,2587.9,19.130724]
[1723825351050,0.00018011,2588.0,2587.9,19.130724]
[1723825351458,0.005,2588.2,2588.1,11.59149]
[1723825351662,0.005,2588.2,2588.1,15.14149]
[1723825351999,0.005,2588.2,2588.1,17.59459]
[1723825352183,0.005,2588.2,2588.1,13.73076]
[1723825352768,0.005,2588.2,2588.1,7.41383]
[1723825353847,0.005,2588.2,2588.1,3.55]
[1723825354071,0.005,2588.2,2588.1,7.41383]
[1723825354593,0.005,2588.2,2588.1,11.27766]
[1723825354792,0.005,2588.2,2588.1,12.405426]
[1723825356583,0.005,2588.2,2588.1,12.48760133]
[1723825356976,0.005,2588.2,2588.1,8.62377133]
[1723825358521,0.005,2588.2,2588.1,12.48760133]
[1723825360923,0.005,2588.2,2588.1,19.20123133]
[1723825362120,0.005,2588.2,2588.1,14.94990133]
[1723825362320,0.005,2588.2,2588.1,18.81373133]
[1723825363188,0.005,2588.2,2588.1,19.20123133]
[1723825364450,0.005,2588.2,2588.1,29.13256133]
[1723825364653,3.86169,2589.6,2589.1,3.86232]
[1723825364951,3.86169,2589.6,2589.2,0.08105582]
[1723825364952,3.86184,2589.5,2589.2,0.08105582]
[1723825365347,3.86184,2589.5,2589.0,23.47744]
[1723825365526,3.86184,2589.5,2589.3,0.08098444]
[1723825365725,3.86169,2589.6,2589.1,7.72458]
[1723825365941,3.86169,2589.6,2589.2,4.41218]
[1723825366255,3.862,2589.4,2589.2,0.08105582]
[1723825366459,3.86226,2589.2,2589.0,19.615]
[1723825366643,3.86199,2589.4,2589.1,0.08112721]
[1723825367337,3.86215,2589.3,2589.1,0.08112721]
[1723825367532,3.86219,2589.2,2589.1,0.08112721]
[1723825367855,3.86205,2589.3,2589.1,0.08112721]
[1723825368753,6.26225,2589.7,2589.1,3.94341721]
[1723825369054,3.86168,2589.6,2589.2,3.55]
[1723825369260,3.86168,2589.6,2589.3,0.08098444]
[1723825369459,3.86168,2589.6,2589.2,0.55]
[1723825369673,3.86168,2589.6,2589.3,0.08098444]
[1723825369832,3.86168,2589.6,2589.2,0.55]
[1723825370038,3.86124,2589.9,2589.3,0.82221744]
[1723825370238,3.86124,2589.9,2589.3,7.68416744]
[1723825370467,3.86139,2589.8,2589.3,7.68416744]
[1723825370830,3.86093,2590.1,2589.4,1.12354976]
[1723825370939,3.86116,2589.9,2589.4,4.41182]
[1723825371135,3.86116,2589.9,2589.5,0.08084169]
[1723825371691,3.86116,2589.9,2589.5,3.94257169]
[1723825371971,3.86118,2589.9,2589.5,0.08084169]
[1723825372173,7.72192,2590.1,2589.5,3.94247169]
[1723825372381,2.4992,2590.2,2589.5,3.07339045]
[1723825372541,3.86095,2590.1,2589.6,7.41159]
[1723825372872,3.86145,2589.7,2589.6,3.0]
[1723825373740,3.86163,2589.6,2589.1,3.86224]
[1723825374086,3.8619,2589.4,2589.2,3.0]
[1723825374851,6.29793,2589.6,2589.2,3.0]
[1723825375159,3.8614,2589.8,2589.2,3.0]
[1723825375160,3.86141,2589.8,2589.2,3.0]
[1723825375355,6.24035,2589.9,2589.3,3.86197]
[1723825375561,6.889344,2589.9,2589.3,3.86197]
[1723825375757,3.86131,2589.8,2589.2,6.86207]
[1723825375962,2.4602,2590.3,2589.2,6.033948]
[1723825376271,2.4602,2590.3,2589.4,3.86181]
[1723825376470,2.4602,2590.3,2589.5,3.0]
[1723825376471,3.86109,2590.0,2589.5,3.0]
[1723825376776,0.632066,2590.2,2589.6,3.86155]
[1723825376963,2.4602,2590.3,2589.6,0.55]
[1723825377164,6.12548,2590.6,2589.6,6.67778]
[1723825377379,3.86044,2590.4,2589.7,3.0]
[1723825377699,3.86044,2590.4,2589.9,3.86114]
[1723825378074,6.12551,2590.6,2589.8,19.69221718]
[1723825378075,6.12552,2590.6,2590.0,6.86091]
[1723825378268,6.12552,2590.6,2590.1,0.55]
[1723825378269,3.86037,2590.5,2590.1,0.55]
[1723825378471,3.86065,2590.3,2590.0,3.0]
[1723825378682,3.86097,2590.1,2589.9,3.0]
[1723825378898,3.86097,2590.1,2589.8,19.615]
[1723825378899,3.86115,2589.9,2589.8,19.615]
[1723825379101,7.7223,2589.9,2589.8,19.615]
[1723825379609,8.72226,2589.9,2589.8,19.615]
[1723825380096,3.86115,2589.9,2589.8,19.615]
[1723825380410,7.7223,2589.9,2589.8,19.615]
[1723825380617,2.2764,2589.8,2589.0,19.615]
[1723825380841,2.2764,2589.8,2588.8,19.615]
[1723825380842,7.72428,2589.3,2588.8,19.615]
[1723825381622,3.86231,2589.2,2588.8,19.615]
[1723825382156,2.4561,2589.3,2588.3,29.2713]
[1723825382264,3.86327,2588.5,2588.0,2.3363]
[1723825382460,2.4561,2589.1,2588.0,2.3363]
[1723825382706,2.4561,2589.6,2588.5,3.86314]
[1723825382911,3.86245,2589.1,2588.5,3.86314]
[1723825383072,3.86244,2589.1,2588.5,7.72628]
[1723825383272,3.86213,2589.3,2588.6,3.863]
[1723825383488,6.455,2590.0,2588.5,2.4223]
[1723825383489,2.4642,2589.9,2589.0,3.8624]
[1723825383815,2.4642,2589.9,2588.5,2.4223]
[1723825383816,3.8622,2589.2,2588.5,6.28552]
[1723825384017,2.4642,2589.5,2588.6,3.0]
[1723825384167,3.86312,2588.6,2588.2,3.0]
[1723825384471,4.10834,2589.4,2588.2,3.0]
[1723825384472,3.86227,2589.2,2588.6,3.86308]
[1723825384679,3.86227,2589.2,2588.7,0.386308]
[1723825384877,3.86227,2589.2,2588.7,3.0]
[1723825385073,3.86235,2589.1,2588.7,3.0]
[1723825385273,3.86213,2589.3,2588.7,6.86288]
[1723825385474,3.86213,2589.3,2588.7,7.549168]
[1723825385675,3.86236,2589.1,2588.7,3.0]
[1723825385901,3.86245,2589.1,2588.7,3.0]
[1723825386063,3.86245,2589.1,2588.6,3.0]
[1723825386265,3.86245,2589.1,2588.6,6.102423]
[1723825386599,3.86245,2589.1,2588.7,0.0807768]
[1723825386795,3.86212,2589.3,2588.7,0.0807768]
[1723825386796,7.72421,2589.3,2588.7,0.0807768]
[1723825386998,3.86207,2589.3,2588.7,0.0807768]
[1723825387201,4.481747,2589.3,2588.7,0.0807768]
[1723825387364,3.86274,2588.9,2588.7,0.0807768]
[1723825387561,3.86279,2588.8,2588.7,0.0807768]
[1723825387802,3.86252,2589.0,2588.7,0.0807768]
[1723825388001,3.86252,2589.0,2588.4,6.86324]
[1723825388164,3.86252,2589.0,2588.8,0.08070539]
[1723825388376,3.86252,2589.0,2588.4,3.0]
[1723825388377,3.86282,2588.8,2588.4,3.0]
[1723825389009,3.86295,2588.7,2588.4,3.0]
[1723825389211,3.86282,2588.8,2588.3,7.26565886]
[1723825389421,2.4608,2589.2,2588.4,2.55172289]
[1723825389422,6.32306,2589.2,2588.4,2.55172289]
[1723825389716,3.86226,2589.2,2588.6,3.86299]
[1723825389919,3.86211,2589.3,2588.7,7.41286]
[1723825390219,3.86195,2589.4,2588.8,3.86278]
[1723825390732,2.4626,2589.5,2589.0,3.86248]
[1723825391034,2.4626,2589.5,2588.7,24.33163452]
[1723825391035,3.86228,2589.2,2588.7,24.33163452]
[1723825391332,3.86249,2589.0,2588.7,22.615]
[1723825391467,7.72508,2589.0,2588.7,22.615]
[1723825391667,3.86249,2589.0,2588.7,22.615]
[1723825392466,7.72507,2589.0,2588.7,22.615]
[1723825392668,3.86249,2589.0,2588.7,22.615]
[1723825393205,3.86278,2588.9,2588.7,22.615]
[1723825393419,3.86279,2588.8,2588.7,22.615]
[1723825393585,7.72558,2588.8,2588.7,22.615]
[1723825393913,2.2675,2589.0,2588.2,2.487]
[1723825394124,2.2675,2589.0,2587.8,25.96621]
[1723825394268,3.86369,2588.2,2587.8,19.615]
[1723825394941,3.86418,2587.9,2587.7,26.935]
[1723825395070,2.2675,2588.4,2587.7,26.935]
[1723825395404,2.2675,2588.4,2587.7,33.74163]
[1723825395405,3.86372,2588.2,2587.7,33.74163]
[1723825395582,3.86385,2588.1,2587.7,29.8772]
[1723825395771,3.86372,2588.2,2587.7,29.8772]
[1723825395772,3.864,2588.0,2587.7,29.8772]
[1723825396596,3.86421,2587.9,2587.6,19.615]
[1723825396768,3.8644,2587.8,2587.6,19.615]
[1723825397181,3.86386,2588.1,2586.9,3.86556]
[1723825397182,2.4131,2587.9,2586.9,33.12831]
[1723825397387,3.86481,2587.5,2587.0,19.615]
[1723825397788,7.72908,2587.7,2587.1,3.86532]
[1723825397993,3.86393,2588.1,2587.2,2.348032]
[1723825398322,3.86422,2587.9,2587.4,3.86479]
[1723825399086,3.86436,2587.8,2587.3,2.3141]
[1723825399320,3.86422,2587.9,2587.3,3.0]
[1723825399321,3.86451,2587.7,2587.3,3.0]
[1723825399726,3.86451,2587.7,2587.2,3.0]
[1723825399938,3.86451,2587.7,2587.2,6.00621538]
[1723825400143,3.86422,2587.9,2587.2,6.00621538]
[1723825400302,3.86387,2588.1,2587.4,3.8648]
[1723825400638,3.86387,2588.1,2587.5,0.99148]
[1723825400847,3.86406,2588.0,2587.5,20.60648]
[1723825401029,3.86413,2587.9,2587.5,20.60648]
[1723825401229,3.86444,2587.7,2587.5,19.615]
[1723825401539,7.72841,2587.9,2587.6,0.08259517]
[1723825401721,3.86413,2587.9,2587.6,0.08259517]
[1723825402043,7.72837,2587.9,2587.6,0.08259517]
[1723825402546,3.86393,2588.1,2587.6,5.91689469]
[1723825402842,3.86387,2588.1,2587.6,25.53183469]
[1723825402992,3.86387,2588.1,2587.7,4.47982999]
[1723825403393,3.86387,2588.1,2587.8,0.08245224]
[1723825403634,7.72723,2588.3,2587.8,0.08245224]
[1723825403939,2.3209,2588.5,2587.9,4.41405]
[1723825403940,3.8634,2588.4,2587.9,4.41405]
[1723825404144,3.86355,2588.3,2588.0,3.0]
[1723825404295,6.18424,2588.5,2588.0,4.13203858]
[1723825404296,7.72669,2588.5,2588.0,4.13203858]
[1723825404490,3.86334,2588.5,2588.0,4.13203858]
[1723825404752,3.86334,2588.5,2588.0,7.99601858]
[1723825405100,3.86309,2588.6,2588.0,7.99591858]
[1723825405298,3.86326,2588.5,2588.1,0.85460186]
[1723825405499,3.86326,2588.5,2588.2,0.08211165]
[1723825405812,3.863,2588.7,2588.2,6.79232915]
[1723825406144,3.86272,2588.9,2588.2,6.79232915]
[1723825406145,3.86272,2588.9,2588.3,7.41339]
[1723825406295,3.86272,2588.9,2588.4,3.86336]
[1723825406498,3.86272,2588.9,2588.5,3.82323336]
[1723825406724,7.72546,2588.9,2588.5,3.82323336]
[1723825406924,3.86289,2588.8,2588.5,3.82323336]
[1723825407142,3.86294,2588.7,2588.5,0.08189736]
[1723825407311,3.86309,2588.6,2588.5,0.08189736]
[1723825407506,3.86309,2588.6,2588.3,3.55]
[1723825407744,3.86309,2588.6,2588.4,0.08196878]
[1723825408400,3.86294,2588.7,2588.4,0.08196878]
[1723825409340,3.86274,2588.9,2588.5,2.4779]
[1723825409341,7.72552,2588.9,2588.5,2.4779]
[1723825409494,7.72552,2588.9,2588.6,0.08182594]
[1723825409495,3.86279,2588.8,2588.6,0.08182594]
[1723825409910,7.72549,2588.9,2588.6,0.08182594]
[1723825410095,7.72549,2588.9,2588.4,3.0]
[1723825410096,3.86274,2588.9,2588.4,3.0]
[1723825410297,3.86294,2588.7,2588.5,0.08189736]
[1723825411699,3.86272,2588.9,2588.5,0.08189736]
[1723825412236,3.86283,2588.8,2588.5,0.08189736]
[1723825413069,3.86145,2589.7,2589.1,3.86226]
[1723825413246,6.3005,2589.8,2589.2,3.0]
[1723825413548,3.8614,2589.8,2589.3,3.86202]
[1723825413765,3.8614,2589.8,2589.4,0.08081919]
[1723825413904,3.86147,2589.7,2589.4,0.08081919]
[1723825414241,3.86147,2589.7,2589.2,3.0]
[1723825414402,3.86147,2589.7,2589.5,0.08074261]
[1723825414601,3.8614,2589.8,2589.2,6.86217]
[1723825414836,3.86145,2589.7,2589.6,0.08067125]